bitfinex/quotes_SOLUSD_20241220
["timestamp","ask_amount","ask_price","bid_price","bid_amount"]
[1734730542623,24.03348714,189.68,189.6,24.03348714]
[1734730543395,24.03348714,189.66,189.58,24.03348714]
[1734730543593,24.03348714,189.66,189.56,24.03348714]
[1734730543822,13.1794,189.69,189.56,24.03348714]
[1734730543823,24.03348714,189.64,189.56,24.03348714]
[1734730544817,24.03348714,189.66,189.58,24.03348714]
[1734730545021,24.03348714,189.68,189.61,24.03348714]
[1734730545223,24.03348714,189.68,189.59,24.03348714]
[1734730545604,24.03348714,189.66,189.57,24.03348714]
[1734730547734,24.03348714,189.66,189.59,24.03348714]
[1734730548929,20.0,189.67,189.61,24.03348714]
[1734730549233,24.03348714,189.69,189.61,24.03348714]
[1734730550531,24.03348714,189.71,189.63,24.03348714]
[1734730551335,24.03348714,189.71,189.65,24.03348714]
[1734730551626,24.03348714,189.73,189.65,24.03348714]
[1734730551830,24.03348714,189.71,189.63,24.03348714]
[1734730551998,24.03348714,189.67,189.54,1.5271]
[1734730552202,24.03348714,189.65,189.58,24.03348714]
[1734730552611,15.03845405,189.66,189.58,15.03845405]
[1734730554829,24.05996194,189.67,189.59,24.05996194]
[1734730560431,24.05996194,189.63,189.55,24.05996194]
[1734730560761,24.05996194,189.63,189.54,1.5271]
[1734730560914,24.05996194,189.61,189.54,1.5271]
[1734730561119,24.05996194,189.63,189.55,24.05996194]
[1734730561620,24.05996194,189.61,189.53,24.05996194]
[1734730561822,24.05996194,189.59,189.51,24.05996194]
[1734730562251,24.05996194,189.61,189.53,24.05996194]
[1734730564140,37.24396194,189.63,189.55,24.05996194]
[1734730564941,24.05996194,189.61,189.53,24.05996194]
[1734730566055,24.05996194,189.63,189.55,24.05996194]
[1734730566953,24.05996194,189.61,189.53,24.05996194]
[1734730567752,24.05996194,189.61,189.5,1.6269]
[1734730567929,24.05996194,189.61,189.52,24.05996194]
[1734730568747,24.05996194,189.56,189.49,24.05996194]
[1734730568949,24.05996194,189.54,189.48,0.6685183]
[1734730569366,24.05996194,189.52,189.48,0.6685183]
[1734730569658,24.05996194,189.5,189.48,0.6685183]
[1734730569966,20.0,189.58,189.49,24.05996194]
[1734730570134,24.05996194,189.57,189.5,24.05996194]
[1734730570532,24.05996194,189.57,189.49,24.05996194]
[1734730572136,24.05996194,189.6,189.52,24.05996194]
[1734730572341,30.70476194,189.61,189.53,24.05996194]
[1734730572557,24.05996194,189.59,189.52,24.05996194]
[1734730573154,24.05996194,189.57,189.5,25.70546194]
[1734730573651,24.05996194,189.54,189.48,0.6685183]
[1734730574029,24.05996194,189.49,189.48,0.6685183]
[1734730574255,24.05996194,189.5,189.48,0.6685183]
[1734730576153,24.05996194,189.49,189.48,0.6685183]
[1734730576659,15.06651114,189.49,189.48,0.6685183]
[1734730576969,38.84339514,189.49,189.38,21.59301114]
[1734730577177,15.06651114,189.45,189.38,21.59301114]
[1734730577336,15.06651114,189.45,189.37,15.06651114]
[1734730577541,15.06651114,189.44,189.36,16.64341114]
[1734730578062,15.06651114,189.39,189.33,15.06651114]
[1734730578255,15.06651114,189.39,189.29,0.6685183]
[1734730578256,15.06651114,189.38,189.3,15.06651114]
[1734730578564,15.06651114,189.37,189.29,15.73502944]
[1734730578944,15.06651114,189.35,189.29,15.73502944]
[1734730579149,2.12612305,189.4,189.33,15.06651114]
[1734730579458,2.12612305,189.4,189.29,0.6685183]
[1734730579459,20.0,189.46,189.38,15.06651114]
[1734730579638,15.06651114,189.45,189.38,15.06651114]
[1734730579838,15.06651114,189.45,189.36,15.06651114]
[1734730580255,15.06651114,189.45,189.38,15.06651114]
[1734730580558,15.06651114,189.43,189.36,15.06651114]
[1734730580795,44.11986144,189.46,189.37,24.11986144]
[1734730580973,20.0,189.46,189.39,24.11986144]
[1734730581660,24.11986144,189.48,189.41,24.11986144]
[1734730582064,26.23301643,189.5,189.41,24.11986144]
[1734730582251,24.11986144,189.5,189.41,24.11986144]
[1734730583673,24.11986144,189.48,189.39,24.11986144]
[1734730584056,24.11986144,189.46,189.37,24.11986144]
[1734730585172,13.1912,189.52,189.35,1.5006]
[1734730585173,24.11986144,189.48,189.35,1.5006]
[1734730585360,24.11986144,189.46,189.38,24.11986144]
[1734730586579,24.11986144,189.46,189.36,24.11986144]
[1734730587368,24.11986144,189.42,189.34,24.11986144]
[1734730587670,24.11986144,189.36,189.3,1.6236]
[1734730587968,24.11986144,189.36,189.29,0.6685183]
[1734730589268,24.11986144,189.38,189.3,24.11986144]
[1734730589441,24.11986144,189.4,189.3,24.11986144]
[1734730590376,24.11986144,189.4,189.32,24.11986144]
[1734730590670,24.11986144,189.42,189.32,24.11986144]
[1734730592562,24.11986144,189.44,189.36,24.11986144]
[1734730593265,24.11986144,189.42,189.32,24.11986144]
[1734730594488,24.11986144,189.4,189.32,24.11986144]
[1734730596782,20.0,189.37,189.29,0.6685183]
[1734730597082,24.11986144,189.36,189.29,0.6685183]
[1734730599164,24.11986144,189.38,189.29,0.6685183]
[1734730599487,24.11986144,189.38,189.3,24.11986144]
[1734730600372,24.11986144,189.4,189.32,24.11986144]
[1734730600877,24.11986144,189.42,189.34,24.11986144]
[1734730601767,24.11986144,189.38,189.3,24.11986144]
[1734730601972,24.11986144,189.36,189.29,0.6685183]
[1734730602472,24.11986144,189.34,189.29,0.6685183]
[1734730603889,24.11986144,189.36,189.29,0.6685183]
[1734730604078,37.32106144,189.38,189.3,24.11986144]
[1734730604275,20.0,189.39,189.32,24.11986144]
[1734730604276,20.0,189.37,189.32,24.11986144]
[1734730604671,20.0,189.37,189.3,24.11986144]
[1734730605382,24.11986144,189.36,189.29,0.6685183]
[1734730606593,37.32216144,189.36,189.29,0.6685183]
[1734730608795,24.11986144,189.32,189.29,0.6685183]
[1734730609787,44.11986144,189.3,189.29,0.6685183]
[1734730610394,24.11986144,189.32,189.29,0.6685183]
[1734730610604,24.11986144,189.34,189.29,0.6685183]
[1734730610766,37.32216144,189.36,189.29,0.6685183]
[1734730612892,24.11986144,189.38,189.3,24.11986144]
[1734730614265,24.11986144,189.4,189.32,24.11986144]
[1734730614469,24.11986144,189.4,189.31,6.2733]
[1734730614470,24.11986144,189.42,189.34,24.11986144]
[1734730616399,24.11986144,189.4,189.33,1.5825]
[1734730616604,24.11986144,189.4,189.32,24.11986144]
[1734730617694,24.11986144,189.4,189.31,6.2733]
[1734730618078,24.11986144,189.4,189.32,24.11986144]
[1734730619406,24.11986144,189.42,189.34,24.11986144]
[1734730619581,24.11986144,189.4,189.32,24.11986144]
[1734730620681,24.11986144,189.38,189.3,24.11986144]
[1734730620884,24.11986144,189.38,189.29,0.6685183]
[1734730621406,24.11986144,189.36,189.29,0.6685183]
[1734730621705,44.11986144,189.32,189.29,0.6685183]
[1734730621910,20.0,189.3,189.29,0.6685183]
[1734730622080,24.11986144,189.34,189.29,0.6685183]
[1734730622717,24.11986144,189.38,189.3,24.11986144]
[1734730623389,24.11986144,189.4,189.32,24.11986144]
[1734730623702,24.11986144,189.42,189.34,24.11986144]
[1734730624011,24.11986144,189.44,189.36,24.11986144]
[1734730624306,24.11986144,189.46,189.38,24.11986144]
[1734730624811,6.5754,189.49,189.42,24.11986144]
[1734730624982,24.11986144,189.5,189.42,24.11986144]
[1734730625399,24.11986144,189.48,189.4,25.73366144]
[1734730625690,24.11986144,189.5,189.43,24.11986144]
[1734730626508,24.11986144,189.51,189.43,24.11986144]
[1734730626712,24.11986144,189.52,189.44,24.11986144]
[1734730627306,24.11986144,189.51,189.43,24.11986144]
[1734730628297,24.11986144,189.51,189.4,1.6138]
[1734730628298,24.11986144,189.49,189.41,24.11986144]
[1734730630211,24.11986144,189.51,189.43,24.11986144]
[1734730630603,15.28215737,189.56,189.4,1.6138]
[1734730630604,24.11986144,189.55,189.47,24.11986144]
[1734730630921,15.28215737,189.56,189.45,24.11986144]
[1734730630922,24.11986144,189.53,189.45,24.11986144]
[1734730631585,24.11986144,189.49,189.41,30.20176144]
[1734730631786,24.11986144,189.51,189.45,24.11986144]
[1734730632283,24.11986144,189.51,189.43,24.11986144]
[1734730633714,24.11986144,189.49,189.41,30.20176144]
[1734730634215,24.11986144,189.49,189.37,24.11986144]
[1734730634216,24.11986144,189.45,189.37,24.11986144]
[1734730634419,24.11986144,189.43,189.35,25.62836144]
[1734730634608,15.07460606,189.43,189.36,15.07460606]
[1734730634926,15.07460606,189.45,189.36,15.07460606]
[1734730636736,24.11665485,189.45,189.37,24.11665485]
[1734730637221,30.67015485,189.49,189.41,24.11665485]
[1734730638206,24.11665485,189.47,189.39,24.11665485]
[1734730638404,24.11665485,189.45,189.37,24.11665485]
[1734730638726,24.11665485,189.45,189.39,24.11665485]
[1734730638931,37.31145485,189.47,189.39,24.11665485]
[1734730639600,24.11665485,189.47,189.39,24.11665485]
[1734730640610,6.5535,189.49,189.41,24.11665485]
[1734730640611,24.11665485,189.49,189.41,24.11665485]
[1734730640806,19.4,189.54,189.43,24.11665485]
[1734730640807,24.11665485,189.51,189.43,24.11665485]
[1734730641201,24.11665485,189.55,189.47,24.11665485]
[1734730641415,24.11665485,189.56,189.49,24.11665485]
[1734730641606,24.11665485,189.56,189.48,24.11665485]
[1734730644832,24.11665485,189.58,189.5,24.11665485]
[1734730647339,24.11665485,189.6,189.52,24.11665485]
[1734730647915,15.25969534,189.63,189.5,24.11665485]
[1734730647916,24.11665485,189.57,189.5,24.11665485]
[1734730648379,24.11665485,189.59,189.51,24.11665485]
[1734730648931,24.11665485,189.55,189.48,24.11665485]
[1734730649311,24.11665485,189.57,189.48,24.11665485]
[1734730649518,24.11665485,189.58,189.51,24.11665485]
[1734730649715,24.11665485,189.57,189.49,24.11665485]
[1734730650026,24.11665485,189.52,189.46,1.636]
[1734730650204,24.11665485,189.53,189.45,24.11665485]
[1734730650807,24.11665485,189.51,189.43,24.11665485]
[1734730651009,24.11665485,189.49,189.41,24.11665485]
[1734730651420,24.11665485,189.47,189.39,25.64235485]
[1734730652641,24.11665485,189.49,189.41,24.11665485]
[1734730653449,24.11665485,189.53,189.45,24.11665485]
[1734730653622,24.11665485,189.54,189.46,24.11665485]
[1734730653933,24.11665485,189.52,189.45,24.11665485]
[1734730654133,24.11665485,189.53,189.45,24.11665485]
[1734730654428,24.11665485,189.53,189.46,24.11665485]
[1734730654942,13.1879,189.57,189.46,24.11665485]
[1734730655131,24.11665485,189.53,189.46,24.11665485]
[1734730655326,24.11665485,189.53,189.45,24.11665485]
[1734730656449,24.11665485,189.55,189.47,24.11665485]
[1734730656756,24.11665485,189.58,189.5,24.11665485]
[1734730657340,24.11665485,189.59,189.51,24.11665485]
[1734730657752,24.11665485,189.61,189.53,24.11665485]
[1734730657932,24.11665485,189.63,189.55,24.11665485]
[1734730659035,24.11665485,189.63,189.56,24.11665485]
[1734730659239,24.11665485,189.65,189.58,24.11665485]
[1734730659850,24.11665485,189.63,189.56,24.11665485]
[1734730660237,24.11665485,189.64,189.57,24.11665485]
[1734730660446,24.11665485,189.67,189.59,24.11665485]
[1734730660877,24.11665485,189.67,189.57,6.1225]
[1734730660878,24.11665485,189.68,189.6,24.11665485]
[1734730661062,24.11665485,189.69,189.62,24.11665485]
[1734730661233,24.11665485,189.68,189.6,24.11665485]
[1734730661557,24.11665485,189.68,189.61,24.11665485]
[1734730662138,24.11665485,189.67,189.6,24.11665485]
[1734730662323,24.11665485,189.68,189.61,24.11665485]
[1734730662552,24.11665485,189.68,189.6,24.11665485]
[1734730662955,24.11665485,189.65,189.57,30.23915485]
[1734730663253,24.11665485,189.64,189.57,30.23915485]
[1734730663460,24.11665485,189.64,189.57,24.11665485]
[1734730664563,13.1802,189.68,189.57,24.11665485]
[1734730664564,24.11665485,189.65,189.57,24.11665485]
[1734730664943,24.11665485,189.64,189.57,24.11665485]
[1734730665262,24.11665485,189.65,189.58,24.11665485]
[1734730665559,24.11665485,189.64,189.56,24.11665485]
[1734730665736,24.11665485,189.64,189.57,24.11665485]
[1734730668082,24.11665485,189.64,189.53,6.94809295]
[1734730668083,24.11665485,189.63,189.56,24.11665485]
[1734730668248,24.11665485,189.62,189.54,24.11665485]
[1734730668573,24.11665485,189.59,189.52,24.11665485]
[1734730668870,24.11665485,189.61,189.53,24.11665485]
[1734730670150,24.11665485,189.61,189.54,24.11665485]
[1734730670475,24.11665485,189.62,189.55,24.11665485]
[1734730671246,24.11665485,189.67,189.59,24.11665485]
[1734730672172,24.11665485,189.66,189.59,24.11665485]
[1734730672680,24.11665485,189.66,189.58,24.11665485]
[1734730673563,24.11665485,189.63,189.56,24.11665485]
[1734730673771,24.11665485,189.62,189.55,44.11665485]
[1734730674063,24.11665485,189.63,189.55,44.11665485]
[1734730674780,24.11665485,189.61,189.54,24.11665485]
[1734730674952,24.11665485,189.61,189.53,24.11665485]
[1734730677569,44.11665485,189.63,189.55,24.11665485]
[1734730677951,24.11665485,189.63,189.55,24.11665485]
[1734730678655,24.11665485,189.64,189.56,24.11665485]
[1734730683780,24.11665485,189.66,189.58,24.11665485]
[1734730683974,24.11665485,189.69,189.62,24.11665485]
[1734730684174,24.11665485,189.72,189.64,24.11665485]
[1734730684374,24.11665485,189.73,189.65,24.11665485]
[1734730684573,24.11665485,189.73,189.66,24.11665485]
[1734730685080,24.11665485,189.73,189.65,24.11665485]
[1734730685464,24.11665485,189.77,189.69,24.11665485]
[1734730686487,24.11665485,189.76,189.69,24.11665485]
[1734730686660,24.11665485,189.75,189.68,24.11665485]
[1734730687177,24.11665485,189.76,189.69,24.11665485]
[1734730690187,24.11665485,189.78,189.69,24.11665485]
[1734730690969,24.11665485,189.76,189.67,24.11665485]
[1734730691166,24.11665485,189.74,189.67,24.11665485]
[1734730691370,24.11665485,189.72,189.65,24.11665485]
[1734730691687,20.0,189.74,189.68,24.11665485]
[1734730691893,24.11665485,189.76,189.68,24.11665485]
[1734730694677,15.01827686,189.8,189.72,15.01827686]
[1734730694993,15.01827686,189.79,189.71,15.01827686]
[1734730697200,15.01827686,189.77,189.69,16.55237686]
[1734730698697,15.01827686,189.73,189.65,15.01827686]
[1734730698883,15.01827686,189.71,189.64,16.60937686]
[1734730699085,15.01827686,189.7,189.64,1.5911]
[1734730699287,15.01827686,189.69,189.62,15.01827686]
[1734730699497,15.01827686,189.68,189.61,15.01827686]
[1734730699810,15.01827686,189.7,189.62,15.01827686]
[1734730701202,15.01827686,189.74,189.66,15.01827686]
[1734730701504,15.01827686,189.72,189.64,15.01827686]
[1734730702702,15.01827686,189.7,189.62,15.01827686]
[1734730703201,15.01827686,189.68,189.6,21.63047686]
[1734730703379,15.01827686,189.68,189.6,15.01827686]
[1734730703792,15.01827686,189.66,189.58,15.01827686]
[1734730706618,15.01827686,189.63,189.56,15.01827686]
[1734730706796,15.01827686,189.63,189.55,1.5551]
[1734730707322,2.12464311,189.68,189.54,15.01827686]
[1734730707323,15.01827686,189.61,189.54,15.01827686]
[1734730707690,15.01827686,189.61,189.52,15.01827686]
[1734730708090,15.01827686,189.61,189.53,15.01827686]
[1734730709407,15.01827686,189.63,189.55,15.01827686]
[1734730713024,6.2368,189.72,189.59,15.01827686]
[1734730713325,15.01827686,189.68,189.59,15.01827686]
[1734730714724,15.01827686,189.68,189.61,15.01827686]
[1734730714906,15.01827686,189.66,189.59,15.01827686]
[1734730715423,13.1793,189.7,189.59,15.01827686]
[1734730715424,15.01827686,189.68,189.59,15.01827686]
[1734730716119,15.01827686,189.7,189.61,16.58237686]
[1734730716425,31.7,189.84,189.61,16.58237686]
[1734730716426,6.3796,189.77,189.67,15.01827686]
[1734730716597,21.39787686,189.77,189.69,15.01827686]
[1734730718224,15.01827686,189.77,189.69,15.01827686]
[1734730718722,15.01827686,189.81,189.73,15.01827686]
[1734730719298,15.01827686,189.77,189.69,15.01827686]
[1734730720447,15.01827686,189.75,189.67,16.56317686]
[1734730723215,15.01827686,189.77,189.69,15.01827686]
[1734730726543,15.01827686,189.75,189.67,16.56317686]
[1734730726722,15.01827686,189.77,189.69,15.01827686]
[1734730727626,15.01827686,189.79,189.71,15.01827686]
[1734730728043,15.01827686,189.81,189.75,15.01827686]
[1734730728225,15.01827686,189.83,189.75,15.01827686]
[1734730728431,15.01827686,189.8,189.73,15.01827686]
[1734730729430,15.01827686,189.78,189.69,15.01827686]
[1734730729948,15.01827686,189.74,189.67,16.56317686]
[1734730732652,15.01827686,189.74,189.67,1.5449]
[1734730732842,15.01827686,189.72,189.65,15.01827686]
[1734730734022,13.1758,189.75,189.66,15.01827686]
[1734730734023,15.01827686,189.73,189.66,15.01827686]
[1734730737059,30.095784,189.77,189.68,15.01827686]
[1734730737223,15.01827686,189.75,189.68,15.01827686]
[1734730737424,45.11406086,189.77,189.68,15.01827686]
[1734730738341,15.01827686,189.77,189.68,15.01827686]
[1734730738661,15.01827686,189.77,189.7,15.01827686]
[1734730739255,15.01827686,189.77,189.71,1.608]
[1734730739560,28.18957686,189.81,189.72,15.01827686]
[1734730740556,15.01827686,189.79,189.72,15.01827686]
[1734730740776,15.01827686,189.79,189.71,1.608]
[1734730740929,15.01827686,189.77,189.71,1.608]
[1734730742361,15.01827686,189.77,189.69,15.01827686]
[1734730742536,15.01827686,189.76,189.68,15.01827686]
[1734730742857,15.01827686,189.74,189.66,16.54137686]
[1734730743229,15.01827686,189.69,189.62,15.01827686]
[1734730743433,15.01827686,189.68,189.61,23.25427686]
[1734730743631,15.01827686,189.69,189.62,15.01827686]
[1734730743933,15.01827686,189.71,189.64,15.01827686]
[1734730744134,15.01827686,189.73,189.66,15.01827686]
[1734730744464,15.01827686,189.76,189.69,15.01827686]
[1734730745235,15.01827686,189.76,189.68,15.01827686]
[1734730746059,15.01827686,189.76,189.69,15.01827686]
[1734730746359,14.8086,189.8,189.71,15.01827686]
[1734730746360,15.01827686,189.79,189.71,15.01827686]
[1734730746743,15.01827686,189.78,189.7,15.01827686]
[1734730746934,15.01827686,189.78,189.71,15.01827686]
[1734730749234,15.01827686,189.74,189.67,15.01827686]
[1734730749433,15.01827686,189.76,189.67,15.01827686]
[1734730758340,15.01827686,189.7,189.63,15.01827686]
[1734730758544,15.01827686,189.7,189.61,23.25427686]
[1734730758751,15.01827686,189.68,189.61,23.25427686]
[1734730759769,15.01827686,189.7,189.61,23.25427686]
[1734730760367,51.97106086,189.74,189.65,15.01827686]
[1734730760569,15.01827686,189.75,189.68,15.01827686]
[1734730760771,28.19237686,189.77,189.69,15.01827686]
[1734730761647,28.19237686,189.77,189.64,0.79066507]
[1734730761852,28.19237686,189.77,189.7,15.01827686]
[1734730762454,15.01827686,189.77,189.7,15.01827686]
[1734730762655,6.4332,189.81,189.73,15.01827686]
[1734730762656,15.01827686,189.81,189.73,15.01827686]
[1734730763073,15.01827686,189.83,189.75,15.01827686]
[1734730763273,15.01827686,189.84,189.76,15.01827686]
[1734730764372,15.01827686,189.83,189.76,15.01827686]
[1734730764547,15.01827686,189.83,189.75,15.01827686]
[1734730766370,15.01827686,189.85,189.77,15.01827686]
[1734730768488,15.01827686,189.87,189.79,15.01827686]
[1734730776966,15.01827686,189.85,189.77,15.01827686]
[1734730779396,15.01827686,189.83,189.75,15.01827686]
[1734730780384,7.5733,189.96,189.79,15.01827686]
[1734730780563,15.01827686,189.89,189.81,15.01827686]
[1734730782654,15.01827686,189.91,189.83,15.01827686]
[1734730782857,15.01827686,189.91,189.79,6.5466]
[1734730782858,15.01827686,189.93,189.85,15.01827686]
[1734730783370,15.68679516,189.95,189.87,16.56967686]
[1734730784659,15.01827686,189.91,189.85,15.01827686]
[1734730785197,15.01827686,189.91,189.83,15.01827686]
[1734730785487,15.01827686,189.89,189.82,1.5395]
[1734730787509,15.01827686,189.87,189.76,2.40493913]
[1734730787798,23.776884,189.88,189.77,15.01827686]
[1734730787799,15.01827686,189.85,189.77,15.01827686]
[1734730789400,13.168,189.86,189.76,1.6149]
[1734730789401,15.01827686,189.83,189.76,1.6149]
[1734730791463,15.01827686,189.83,189.75,15.01827686]
[1734730792593,15.01827686,189.81,189.73,15.01827686]
[1734730792900,15.01827686,189.79,189.71,16.68047686]
[1734730794105,15.01827686,189.74,189.67,1.6155]
[1734730794395,15.01827686,189.72,189.65,15.01827686]
[1734730794775,15.01827686,189.72,189.64,6.0336]
[1734730794972,15.01827686,189.72,189.63,15.01827686]
[1734730797405,13.1758,189.75,189.62,1.6155]
[1734730797698,15.01827686,189.72,189.64,15.01827686]
[1734730799205,20.0,189.78,189.62,1.6155]
[1734730799206,24.87544238,189.81,189.63,20.0]
[1734730799498,15.01827686,189.78,189.7,15.01827686]
[1734730799680,15.01827686,189.78,189.71,15.01827686]
[1734730800193,15.01827686,189.8,189.72,15.01827686]
[1734730800565,15.01827686,189.8,189.66,0.79048765]
[1734730800566,13.1717,189.8,189.69,15.01827686]
[1734730800787,15.01827686,189.77,189.69,15.01827686]
[1734730800986,15.01827686,189.78,189.7,15.01827686]
[1734730801511,15.01827686,189.77,189.7,15.01827686]
[1734730802086,15.01827686,189.79,189.71,15.01827686]
[1734730802292,15.01827686,189.77,189.7,15.01827686]
[1734730802495,15.01827686,189.74,189.66,15.01827686]
[1734730803501,15.01827686,189.76,189.68,15.01827686]
[1734730805489,15.01827686,189.7,189.62,1.6155]
[1734730805708,15.01827686,189.7,189.62,16.63377686]
[1734730806048,15.01827686,189.74,189.66,15.01827686]
[1734730806401,15.01827686,189.76,189.68,15.01827686]
[1734730807106,28.19147686,189.78,189.71,15.01827686]
[1734730807309,15.01827686,189.77,189.69,15.01827686]
[1734730807483,15.01827686,189.76,189.69,15.01827686]
[1734730807879,15.01827686,189.74,189.67,15.01827686]
[1734730808196,15.01827686,189.73,189.67,15.01827686]
[1734730808511,15.01827686,189.77,189.69,15.01827686]
[1734730808685,28.19147686,189.78,189.7,15.01827686]
[1734730809219,2.15867956,189.8,189.7,15.01827686]
[1734730809417,2.15867956,189.8,189.64,0.79073842]
[1734730809418,6.4028,189.81,189.72,15.01827686]
[1734730809596,21.42107686,189.81,189.72,15.01827686]
[1734730810022,15.01827686,189.79,189.72,15.01827686]
[1734730810233,15.01827686,189.76,189.69,15.01827686]
[1734730813901,15.01827686,189.78,189.71,15.01827686]
[1734730814104,15.01827686,189.8,189.73,15.01827686]
[1734730814716,2.07273361,189.81,189.73,15.01827686]
[1734730814918,15.01827686,189.82,189.73,15.01827686]
[1734730815731,15.01827686,189.82,189.75,15.01827686]
[1734730816104,13.1699,189.83,189.76,15.01827686]
[1734730816834,15.01827686,189.85,189.77,15.01827686]
[1734730817138,15.01827686,189.85,189.78,15.01827686]
[1734730820257,15.01827686,189.87,189.78,15.01827686]
[1734730821475,20.0,189.87,189.8,15.01827686]
[1734730821767,35.01827686,189.87,189.8,15.01827686]
[1734730822856,35.01827686,189.87,189.78,15.01827686]
[1734730823045,35.01827686,189.85,189.76,15.01827686]
[1734730823245,15.01827686,189.83,189.76,15.01827686]
[1734730823751,15.01827686,189.81,189.74,15.01827686]
[1734730824264,15.01827686,189.75,189.65,15.01827686]
[1734730824436,15.01827686,189.75,189.67,15.01827686]
[1734730825360,6.2613,189.77,189.69,15.01827686]
[1734730825361,15.01827686,189.77,189.69,15.01827686]
[1734730825740,28.19127686,189.79,189.71,15.01827686]
[1734730829467,15.01827686,189.77,189.69,15.01827686]
[1734730830881,15.01827686,189.8,189.73,15.01827686]
[1734730831185,15.01827686,189.85,189.77,15.01827686]
[1734730831359,15.01827686,189.84,189.77,15.01827686]
[1734730831557,15.01827686,189.82,189.74,15.01827686]
[1734730831752,15.01827686,189.81,189.74,15.01827686]
[1734730831981,15.01827686,189.79,189.72,15.01827686]
[1734730832186,15.01827686,189.8,189.72,15.01827686]
[1734730832581,13.1675,189.86,189.75,15.01827686]
[1734730832888,15.01827686,189.83,189.75,15.01827686]
[1734730835790,15.01827686,189.81,189.73,15.01827686]
[1734730836971,15.01827686,189.79,189.71,15.01827686]
[1734730837296,15.01827686,189.77,189.7,1.5494]
[1734730837468,15.01827686,189.75,189.67,15.01827686]
[1734730837992,15.01827686,189.77,189.69,15.01827686]
[1734730838398,1.5699,189.83,189.72,15.01827686]
[1734730838399,15.01827686,189.8,189.72,15.01827686]
[1734730839282,15.01827686,189.82,189.74,15.01827686]
[1734730839487,15.01827686,189.82,189.75,15.01827686]
[1734730839675,15.01827686,189.82,189.74,15.01827686]
[1734730842099,15.01827686,189.83,189.76,15.01827686]
[1734730842287,15.01827686,189.84,189.76,15.01827686]
[1734730842603,15.01827686,189.79,189.71,15.01827686]
[1734730842782,15.01827686,189.79,189.7,15.01827686]
[1734730843473,15.01827686,189.75,189.68,16.56817686]
[1734730843669,15.01827686,189.73,189.66,21.50577686]
[1734730843869,15.01827686,189.75,189.66,15.01827686]
[1734730844807,15.01827686,189.77,189.68,15.01827686]
[1734730846500,15.01827686,189.75,189.68,15.01827686]
[1734730850208,28.19257686,189.77,189.68,15.01827686]
[1734730851518,15.01827686,189.75,189.66,15.01827686]
[1734730860428,15.01827686,189.75,189.68,15.01827686]
[1734730861031,28.19397686,189.75,189.66,15.01827686]
[1734730861320,15.01827686,189.67,189.6,1.577]
[1734730861535,15.01827686,189.65,189.59,8.29687259]
[1734730862022,23.776884,189.7,189.6,15.01827686]
[1734730862224,15.01827686,189.69,189.6,15.01827686]
[1734730862610,15.01827686,189.68,189.61,15.01827686]
[1734730864622,23.776884,189.7,189.56,8.2124]
[1734730864623,15.01827686,189.66,189.59,15.01827686]
[1734730864823,15.01827686,189.66,189.58,15.01827686]
[1734730865509,15.01827686,189.66,189.59,15.01827686]
[1734730865707,15.01827686,189.65,189.57,15.01827686]
[1734730865913,28.20007686,189.66,189.58,15.01827686]
[1734730866227,15.01827686,189.65,189.57,15.01827686]
[1734730867221,1.5796,189.68,189.59,15.01827686]
[1734730867222,15.01827686,189.67,189.59,15.01827686]
[1734730868531,6.082,189.71,189.63,15.01827686]
[1734730868714,21.10027686,189.71,189.63,15.01827686]
[1734730869115,15.01827686,189.71,189.64,15.01827686]
[1734730869428,15.01827686,189.71,189.63,15.01827686]
[1734730876138,15.01827686,189.69,189.61,15.01827686]
[1734730876634,15.01827686,189.71,189.63,15.01827686]
[1734730878320,13.1768,189.73,189.65,15.01827686]
[1734730878518,28.19507686,189.73,189.65,15.01827686]
[1734730880020,15.01827686,189.69,189.61,15.01827686]
[1734730880227,15.01827686,189.65,189.57,15.01827686]
[1734730882215,15.01827686,189.63,189.57,15.01827686]
[1734730882445,15.01827686,189.63,189.56,1.577]
[1734730882639,15.01827686,189.6,189.52,1.6337]
[1734730882819,15.01827686,189.57,189.49,15.01827686]
[1734730883015,15.01827686,189.55,189.49,15.01827686]
[1734730883224,15.01827686,189.54,189.48,1.6399]
[1734730883438,15.01827686,189.54,189.46,23.31514945]
[1734730883619,15.01827686,189.49,189.43,9.93677259]
[1734730884125,15.01827686,189.49,189.43,8.29687259]
[1734730884526,15.01827686,189.49,189.41,15.01827686]
[1734730885131,15.01827686,189.49,189.42,15.01827686]
[1734730885717,15.01827686,189.46,189.39,16.65817686]
[1734730885919,15.01827686,189.44,189.37,15.01827686]
[1734730887749,15.01827686,189.46,189.38,15.01827686]
[1734730889842,15.01827686,189.44,189.36,15.01827686]
[1734730890953,15.01827686,189.42,189.35,1.5606]
[1734730891321,15.01827686,189.44,189.36,15.01827686]
[1734730895450,6.3593,189.5,189.41,15.01827686]
[1734730895629,15.01827686,189.49,189.41,15.01827686]
[1734730895829,15.01827686,189.48,189.41,15.01827686]
[1734730896174,15.01827686,189.49,189.41,15.01827686]
[1734730896854,15.01827686,189.48,189.4,15.01827686]
[1734730897153,15.01827686,189.49,189.41,15.01827686]
[1734730898851,15.01827686,189.48,189.39,15.01827686]